Cogmind - Beta 12 @@@ ROGUE MODE // 2023.10.18 @ 11:03:11 Player: wchar_t Result: Destroyed by as-97509 with Assembled Blade Performance ------------- Evolutions (0) 0 Regions Visited (2) 400 Robots Destroyed (6) 30 Value Destroyed (60) 60 Prototype IDs (0) 0 Alien Tech Used (0) 0 Bonus (0) 0 TOTAL SCORE: 490 Bonus ------- None Cogmind --------- Core Integrity 0/250 Matter 280/300 Energy 100/100 System Corruption 12% Temperature Cool (0) Movement Core (50) Location -10/Mines Parts ------- > --- POWER (1) -------- (None) > --- PROPULSION (2) --- (None) > --- UTILITY (2) ------ (None) > --- WEAPON (2) ------- (None) > --- INVENTORY (5) ---- Light Ion Engine Flight Unit Flight Unit Flight Unit Flight Unit Peak State ------------ > --- POWER ------------ Light Ion Engine > --- PROPULSION ------- Aluminum Leg Aluminum Leg > --- UTILITY ---------- Small Storage Unit High-capacity Storage Unit > --- WEAPON ----------- Medium Laser Light Assault Rifle > --- INVENTORY -------- Light Ion Engine Flight Unit Flight Unit Flight Unit Medium Laser [Rating: 7] Favorites ----------- Power Light Ion Engine Engine Light Ion Engine Propulsion Aluminum Leg Leg Aluminum Leg Utility High-capacity Storage Unit Storage High-capacity Storage Unit Weapon Medium Laser Energy Gun Medium Laser Ballistic Gun Light Assault Rifle Build | -11 -10 -10 ------- Run | Jun Mat Min Slots Evolved . | . . . Power . | . . . Propulsion . | . . . Utility . | . . . Weapon . | . . . Parts Attached 10 | 7 . 3 Power 1 | 1 . . Engine 1 | 1 . . Core . | . . . Reactor . | . . . Propulsion 2 | 2 . . Treads . | . . . Leg 2 | 2 . . Wheel . | . . . Hover . | . . . Flight . | . . . Utility 2 | 1 . 1 Device . | . . . Storage 2 | 1 . 1 Processor . | . . . Hackware . | . . . Protection . | . . . Artifact . | . . . Weapon 5 | 3 . 2 Energy Gun 3 | 2 . 1 Energy Cannon . | . . . Ballistic Gun 2 | 1 . 1 Ballistic Cannon . | . . . Launcher . | . . . Special Weapon . | . . . Impact Weapon . | . . . Slashing Weapon . | . . . Piercing Weapon . | . . . Special Melee Weapon . | . . . Unidentified Prototypes . | . . . Parts Lost 6 | . . 6 Power 1 | . . 1 Propulsion 2 | . . 2 Utility . | . . . Weapon 3 | . . 3 Highest Loss Streak 4 | . . 4 To Critical Strikes . | . . . Average Slot Usage (%) 80 | . 85 79 Engine 13 | . 14 13 Leg 25 | . 28 25 Storage 13 | . 14 13 Energy Gun 13 | . 14 13 Ballistic Gun 13 | . 14 12 Naked Turns 6 | . . 6 Heaviest Build 46 | 11 11 46 Greatest Support 20 | 20 20 20 Greatest Overweight (x) 2 | 1 . 2 Average Overweight (x) . | . . 1 Largest Inventory Capacity 20 | 8 8 20 Average Capacity 14 | 7 8 17 Most Carried 10 | 1 1 10 Average Carried 4 | . . 6 Final Capacity 8 | 8 8 5 Final Carried 5 | . 1 5 Class Distribution -------------------- 100% | Mutant Dominant Class ---------------- Mutant | -10/Materials Mutant | -10/Mines Resources | -11 -10 -10 ----------- Run | Jun Mat Min Matter Collected 271 | 187 . 84 Remotely . | . . . Salvage Created 113 | . . 113 Parts 9 | . . 9 Haulers Intercepted . | . . . Recyclers Shooed 1 | 1 . . Parts Field Recycled . | . . . Retrieved Matter . | . . . Parts Self-Destructed . | . . . Prevented . | . . . Kills | -11 -10 -10 ------- Run | Jun Mat Min Combat Hostiles Destroyed 8 | . . 8 Guns 8 | . . 8 Classes Destroyed 2 | . . 2 Swarmer 6 | . . 6 Assembled 2 | . . 2 Best Kill Streak 3 | . . 3 Combat Bots Only 3 | . . 3 Max Kills in Single Turn 1 | . . 1 Gunslinging . | . . . Exploded . | . . . Melee . | . . . Uniques/NPCs Destroyed . | . . . Combat | -11 -10 -10 -------- Run | Jun Mat Min Damage Taken 735 | . . 735 Core 277 | . . 277 Absorbed by Shields . | . . . Core Remaining (%) 100 | 100 . . Volleys Fired 25 | . 1 24 Largest 2 | . 2 2 Hottest 70 | . 70 70 Shots Fired 44 | . 2 42 Gun 44 | . 2 42 Cannon . | . . . Launcher . | . . . Special . | . . . Kinetic 19 | . 1 18 Thermal 25 | . 1 24 Explosive . | . . . Electromagnetic . | . . . Robot Hit Streak 10 | . . 10 Robot Miss Streak 6 | . 2 6 Penetration Max . | . . . Secondary Targets 3 | . . 3 Max Gunslinging Chain 1 | . . 1 Shots Hit Robots 25 | . . 25 Core Hits 11 | . . 11 Critical Kills . | . . . Critical Parts Destroyed . | . . . Critical Strikes . | . . . Melee Attacks . | . . . Impact . | . . . Slashing . | . . . Piercing . | . . . Sneak Attacks . | . . . Combat Hostiles . | . . . Follow-up Attacks . | . . . Damage Inflicted 294 | . . 294 Guns 288 | . . 288 Cannons . | . . . Explosions . | . . . Melee . | . . . Ramming 6 | . . 6 Kinetic 66 | . . 66 Thermal 222 | . . 222 Explosive . | . . . Electromagnetic . | . . . Impact . | . . . Slashing . | . . . Piercing . | . . . Highest Corruption 12 | . . 12 Average Corruption 10 | . . 10 Corruption Purged . | . . . Corruption Blocked . | . . . Effects 2 | . . 2 Message Errors 1 | . . 1 Matter Fused 1 | . . 1 Overload Shots . | . . . Overflow Damage . | . . . Projectiles . | . . . Explosions . | . . . Melee . | . . . Knockbacks . | . . . Impact . | . . . Kinetic . | . . . Secondary . | . . . Self-Inflicted Damage . | . . . Shots . | . . . Rammed . | . . . Targets Rammed 2 | 1 . 1 Kicked 2 | 1 . 1 Crushed . | . . . Highest Temperature 110 | . 30 110 Average Temperature 47 | . 19 48 Received Heat Transfer 60 | . . 60 Siege Activations . | . . . Robots Corrupted . | . . . Combat Hostiles . | . . . Parts Fried . | . . . Impact Corruptions . | . . . Robots Melted . | . . . Combat Hostiles . | . . . Parts Melted 1 | . . 1 Heat Transferred 666 | . . 666 Parts Sabotaged . | . . . Parts Stolen . | . . . Parts Stripped . | . . . Power Chain Reactions . | . . . Missiles Intercepted . | . . . Alert | -11 -10 -10 ------- Run | Jun Mat Min Peak Influence 151 | . 30 151 Initial 11 | . . 11 Average 69 | . 12 96 Maximum Alert Level . | . . . Low Security (%) 100 | 100 100 100 Level 1 . | . . . Level 2 . | . . . Level 3 . | . . . Level 4 . | . . . Level 5 . | . . . High Security . | . . . Max Security . | . . . Squads Dispatched . | . . . Investigation . | . . . Extermination . | . . . Reinforcement . | . . . Assault . | . . . Garrison . | . . . Intercept . | . . . Searches Triggered . | . . . Construction Impeded . | . . . Haulers Reinforced . | . . . Active Scanning Responses . | . . . Cargo Convoy Interrupts . | . . . Stealth | -11 -10 -10 --------- Run | Jun Mat Min Distress Signals . | . . . Communications Jammed . | . . . Distress Signals . | . . . Times Spotted 17 | . 2 15 Peak Tracking Total 6 | . 1 6 Tactical Retreats 1 | . . 1 Traps | -11 -10 -10 ------- Run | Jun Mat Min Traps Triggered . | . . . Indirectly . | . . . Trap Hack Attempts . | . . . Triggered . | . . . Disarmed . | . . . Reprogrammed . | . . . Reused . | . . . Traps Extracted . | . . . Installed . | . . . Triggered . | . . . Machines | -11 -10 -10 ---------- Run | Jun Mat Min Machines Disabled . | . . . Max in Single Turn . | . . . Machines Repaired . | . . . Machines Sabotaged . | . . . Overloaded Fab Kills . | . . . Hacking | -11 -10 -10 --------- Run | Jun Mat Min Machines Accessed . | . . . Terminals . | . . . Fabricators . | . . . Repair Stations . | . . . Recycling Units . | . . . Scanalyzers . | . . . Garrison Access . | . . . Total Hacks . | . . . Successful . | . . . Failed . | . . . Catastrophic . | . . . Database Lockouts . | . . . Manual . | . . . Terminals . | . . . Fabricators . | . . . Repair Stations . | . . . Recycling Units . | . . . Scanalyzers . | . . . Garrison Access . | . . . Terminal Hacks . | . . . Fabricator Hacks . | . . . Repair Station Hacks . | . . . Recycling Unit Hacks . | . . . Scanalyzer . | . . . Garrison Access Hacks . | . . . Unauthorized Hacks . | . . . Terminals . | . . . Fabricators . | . . . Repair Stations . | . . . Recycling Units . | . . . Scanalyzers . | . . . Garrison Access . | . . . Data Cores Recovered . | . . . Used . | . . . Hacking Detections . | . . . Full Trace Events . | . . . Feedback Events . | . . . Feedback Blocked . | . . . Robot Schematics Acquired . | . . . Robots Built . | . . . Authchips . | . . . Time . | . . . Total Robot Build Rating . | . . . Part Schematics Acquired . | . . . Parts Built . | . . . Authchips . | . . . Time . | . . . Total Part Build Rating . | . . . Parts Repaired . | . . . Time . | . . . Parts Recycled . | . . . Recycled Matter . | . . . Retrieved Matter . | . . . Retrieved Components . | . . . Parts Scanalyzed . | . . . Part Schematics Acquired . | . . . Parts Damaged . | . . . Bothacking | -11 -10 -10 ------------ Run | Jun Mat Min Used RIF Installer . | . . . Robots Hacked . | . . . Non-combat . | . . . Combat . | . . . Robot Hacks Applied . | . . . Relay Couplers Released . | . . . Fabnet Peak Effective % . | . . . Robots Rewired . | . . . Allies Hacked . | . . . Hacks Repelled . | . . . Allies | -11 -10 -10 -------- Run | Jun Mat Min Total Allies . | . . . Largest Group . | . . . Highest-Rated Group . | . . . Highest-Rated Ally . | . . . Total Orders . | . . . Ally Attacks . | . . . Total Damage . | . . . Kills . | . . . Allies Corrupted . | . . . Allies Melted . | . . . Intel | -11 -10 -10 ------- Run | Jun Mat Min Robot Analysis Total . | . . . Derelict Logs Recovered 1 | . . 1 Drone Launches . | . . . Drone Recoveries . | . . . Exploration | -11 -10 -10 ------------- Run | Jun Mat Min Turns Passed 554 | 97 69 388 Spaces Moved 279 | 76 55 148 Core 25 | 10 . 15 Treads . | . . . Legs 254 | 66 55 133 Wheels . | . . . Hover . | . . . Flight . | . . . Fastest Speed 50 | 50 120 50 Average Speed 161 | 112 120 203 Slowest Speed 260 | 120 120 260 Overloaded Moves . | . . . Propulsion Burnouts . | . . . Robots Hopped . | . . . Cave-ins Triggered . | . . . Exploration Rate (%) 18 | 5 16 33 Regions Visited 2 Branch Regions 1 Pre-discovered Areas . | . . . Known Exits Taken . | . . . Unknown Exits Taken 2 | 1 1 . Scrap Searched 1 | . . 1 Spaces Dug . | . . . Terrain Destroyed . | . . . Melee . | . . . Projectile . | . . . AOE . | . . . Terrain Rammed . | . . . Walls Destroyed . | . . . Machines Disabled . | . . . Actions | -11 -10 -10 --------- Run | Jun Mat Min Total 337 | 85 56 196 Wait 8 | . . 8 Move 277 | 75 54 148 Hop . | . . . Pick Up 10 | . 1 9 Fast Attach 8 | 7 . 1 Attach 2 | . . 2 Detach 2 | 1 . 1 Swap . | . . . Drop 3 | 1 . 2 Fire 25 | . 1 24 Melee . | . . . Ram . | . . . Kick 2 | 1 . 1 Crush . | . . . Escape Stasis . | . . . Rewire . | . . . Trap . | . . . Miscellaneous . | . . . Route ------- -11/Junkyard -10/Materials -10/Mines History --------- Turn | Location | Event 8 | -11/Junkyard | Discovered new exit (range 15) 98 | -11/Junkyard | Entered Materials 148 | -10/Materials | Discovered new exit (range 6) 167 | -10/Materials | Entered Mines 222 | -10/Mines | Found a hidden stash of uninstalled traps 303 | -10/Mines | Build established: Mutant 360 | -10/Mines | Learned 2 Materials zone layouts 367 | -10/Mines | Assembled infested the area 518 | -10/Mines | System corruption reached 10% 521 | -10/Mines | Core integrity fell below 50% 548 | -10/Mines | Lost 4 parts (2n2w) 553 | -10/Mines | Core integrity fell below 20% 555 | -10/Mines | Destroyed by as-97509 with Assembled Blade Last Messages --------------- 00494_ as-26388 sneak attacks. 00494_ U-05 Engineer destroyed. 00510_ Aluminum Leg destroyed. 00511_ Lgt. Assault Rifle destroyed. 00511_ System corrupted by crushing effect (+4). 00517_ Med. Laser destroyed. 00517_ Aluminum Leg destroyed. 00517_ System corrupted by crushing effect (+5). 00517_ System corrupted by crushing effect (+3). 00518_ as-85262 destroyed. 00520_ Lgt. Assault Rifle severed. 00527_ Destroyed Asb. Hover Unit. 00528_ System corrupted: Matter fused (-8). 00531_ as-07269 destroyed. 00537_ Dropped Hcp. Storage Unit. 00540_ Acquired 13 matter. 00541_ Acquired 10 matter. 00549_ Lgt. Ion Engine destroyed. 00549_ Med. Laser destroyed. 00553_ ZGVM3NOM4J=#PWOAGNGXDK0QI0 Map ----- +----------------------------------------------------+ | | | | | ???????????????????????????????????????? | | ???????????????????????????????????????? | | ???????????????????????????????????????? | | ???????????????????????????????????????? | | ???????????????????????????????????????? | | ???????????????????????????????????????? | | ???????????????????????????????????????? | | ???????????????????????????????????????? | | ???????????????????????????????????????? | | ???????????????????????????????????????? | | ???????????????????????????????????????? | | ???????????????????????????????????????? | | ???????????????????????????????????????? | | ???????????????????????????????????????? | | ????????????????????????????????????#??? | | ???######???????????????????????## ???? | | ??## ##?????????######?##### #??? | | ??# ##???????## ## ???? | | ??#!== ##??????# "??????? | | ???#![ ####??## #??????????? | | ???###### #### %[ #????????????? | | ????????## ## ## ##????????????? | | ?????????# a a * ### #?????????????? | | ?????????# @a #?# #???####??????? | | ?????????# ##?# #???# ???????? | | ?????????# #??# #???# #??????? | | ????????## """ ##??# ##### ###### | | ?????#### """ #???# | | ?????# """ #???# ########### | | ????# =% #??# #?????????? | | ????# #??# #??????????? | | ????## ## ## ##??# #???????????## | | ?????####?###### ##???# #??????####### | | ???????????????# #????# ######## | | ???????????????# #????# #???? | | ???????????????? #????########## #???? | | ????????????????? #?????????????# #???? | | ????????????????????????????????# #???? | | ????????????????????????????????# #???? | | ????????????????????????????????# #???? | | ????????????????????????????????# #???? | | ????????????????????????????????# #???? | | ????????????????????????????????# #???? | | ???????????????????????????????## #???? | | ??????????????????????????????## ##### | | ????????????????????????????### | | ???????????????????????????##& | | ??????????????????????????## & ####### | +----------------------------------------------------+ Best States ------------- Heat Dissipation 25 Energy Generation 10 Energy Capacity 125 Matter Stores 280 Matter Capacity 300 Sight Range 16 Terrain Scan Density 10 Evasion (%) 55 Item Schematics ----------------- None Robot Schematics ------------------ None Fabricated ------------ Nothing Alien Tech Used ----------------- None Achievements -------------- None Challenges ------------ None Game ------ Seed SupersonicTerrainBlade Manual? 0 Play Time 00:04:24 Cumulative 363.3 hours Start 2023.10.18 @ 09:46:13 End 2023.10.18 @ 11:03:11 Sessions 1 Manual Loads 0 Difficulty Rogue Special Mode None Game No. 142 Rogue 126 Adventurer 8 Explorer 8 Win Type - Total 26 Types 12/1/9/1/1/1/1/0/0 Lore% 89 Gallery% 88 Achievement% 77 Wizard Run 0 Options --------- ASCII 1 Keyboard 1 Movement Vi Keybinds 0 Fullscreen 2 Font 18/SmallcapsGlow Map View 76x50 Tactical HUD 1 Map Filters NONE Filters NONE Steam 0 RUN: 28d7603b-7788-4477-b817-a9e965e105e4